Cogmind - Beta 13 @@@ ROGUE MODE // 2024.04.04 @ 05:41:52 Player: applejuice Result: Destroyed by as-75208 with Assembled Maul Performance ------------- Evolutions (0) 0 Regions Visited (3) 600 Robots Destroyed (10) 50 Value Destroyed (256) 256 Prototype IDs (2) 40 Alien Tech Used (0) 0 Bonus (60) 60 TOTAL SCORE: 1006 Bonus ------- Follower Combat Kills 60 Cogmind --------- Core Integrity 0/250 Matter 300/300 Energy 100/100 System Corruption 8% Temperature Cool (0) Movement Core (50) Location -10/Exiles Parts ------- > --- POWER (1) -------- (None) > --- PROPULSION (2) --- (None) > --- UTILITY (2) ------ (None) > --- WEAPON (2) ------- (None) > --- INVENTORY (5) ---- Ion Engine Improved Treads Improved Treads Particle Gun Assault Rifle Peak State ------------ > --- POWER ------------ (None) > --- PROPULSION ------- Improved Treads Improved Treads > --- UTILITY ---------- Improved Heat Sink Targeting Computer > --- WEAPON ----------- Assault Rifle Heavy Battle Rifle > --- INVENTORY -------- Ion Engine Improved Treads Improved Treads Assault Rifle Light Assault Rifle [Rating: 13] Favorites ----------- Power Light Ion Engine Engine Light Ion Engine Propulsion Improved Treads Treads Improved Treads Leg Aluminum Leg Utility Targeting Computer Device Heat Sink Processor Targeting Computer Weapon Assault Rifle Ballistic Gun Assault Rifle Build | -11 -10 -10 -10 ------- Run | Yrd Mat Min Exi Slots Evolved . | . . . . Power . | . . . . Propulsion . | . . . . Utility . | . . . . Weapon . | . . . . Parts Attached 16 | 6 8 2 . Power 1 | 1 . . . Engine 1 | 1 . . . Core . | . . . . Reactor . | . . . . Propulsion 5 | 2 3 . . Treads 3 | . 3 . . Leg 2 | 2 . . . Wheel . | . . . . Hover . | . . . . Flight . | . . . . Utility 3 | 1 1 1 . Device 2 | 1 . 1 . Storage . | . . . . Processor 1 | . 1 . . Hackware . | . . . . Protection . | . . . . Artifact . | . . . . Weapon 7 | 2 4 1 . Energy Gun . | . . . . Energy Cannon . | . . . . Ballistic Gun 7 | 2 4 1 . Ballistic Cannon . | . . . . Launcher . | . . . . Special Weapon . | . . . . Impact Weapon . | . . . . Slashing Weapon . | . . . . Piercing Weapon . | . . . . Special Melee Weapon . | . . . . Unidentified Prototypes . | . . . . Parts Lost 7 | . . 1 6 Power 1 | . . 1 . Propulsion 2 | . . . 2 Utility 2 | . . . 2 Weapon 2 | . . . 2 Highest Loss Streak 6 | . . 1 6 To Critical Strikes . | . . . . Average Slot Usage (%) 90 | . 87 93 80 Engine 9 | . 14 8 . Treads 24 | . 17 28 26 Leg 3 | . 10 . . Device 13 | . 14 14 13 Processor 10 | . 3 14 12 Ballistic Gun 27 | . 27 28 27 Naked Turns 1 | . . . 1 Heaviest Build 10 | 6 7 10 7 Greatest Support 46 | 20 46 46 46 Greatest Overweight (x) 2 | . 2 . 1 Average Overweight (x) . | . . . . Largest Inventory Capacity 5 | 5 5 5 5 Average Capacity 5 | 5 5 5 5 Most Carried 5 | 3 5 5 5 Average Carried 4 | 1 4 4 5 Final Capacity 5 | 5 5 5 5 Final Carried 5 | 2 5 5 5 Class Distribution -------------------- 100% | Mutant Dominant Class ---------------- Mutant | -10/Materials Mutant | -10/Mines Mutant | -10/Exiles Resources | -11 -10 -10 -10 ----------- Run | Yrd Mat Min Exi Matter Collected 562 | 268 130 164 . Remotely . | . . . . Salvage Created 284 | 32 252 . . Parts 27 | 2 25 . . Haulers Intercepted . | . . . . Recyclers Shooed . | . . . . Parts Field Recycled . | . . . . Retrieved Matter . | . . . . Parts Self-Destructed . | . . . . Prevented . | . . . . Kills | -11 -10 -10 -10 ------- Run | Yrd Mat Min Exi Combat Hostiles Destroyed 8 | 1 7 . . Guns 8 | 1 7 . . Classes Destroyed 4 | 1 3 . . Tunneler 1 | . 1 . . Watcher 1 | . 1 . . Swarmer 3 | . 3 . . Grunt 5 | 1 4 . . Best Kill Streak 3 | 1 3 . . Combat Bots Only 3 | 1 3 . . Max Kills in Single Turn 1 | 1 1 . . Gunslinging . | . . . . Exploded . | . . . . Melee . | . . . . Uniques/NPCs Destroyed . | . . . . Combat | -11 -10 -10 -10 -------- Run | Yrd Mat Min Exi Hostile Shots Fired 124 | 4 48 5 67 Missed 40 | 2 19 2 17 Damage Taken 1054 | 21 336 36 661 Core 278 | . 50 . 228 Absorbed by Shields . | . . . . Core Remaining (%) 100 | 100 . . . Volleys Fired 44 | 4 38 2 . Largest 2 | 2 2 2 . Hottest 53 | 40 40 53 . Shots Fired 90 | 8 76 5 1 Gun 90 | 8 76 5 1 Cannon . | . . . . Launcher . | . . . . Special . | . . . . Kinetic 90 | 8 76 5 1 Thermal . | . . . . Explosive . | . . . . Electromagnetic . | . . . . Robot Hit Streak 14 | 6 14 2 1 Robot Miss Streak 9 | 1 9 1 . Penetration Max . | . . . . Secondary Targets . | . . . . Shots Hit Robots 51 | 6 42 2 1 Core Hits 25 | 3 21 1 . Critical Kills . | . . . . Critical Parts Destroyed . | . . . . Critical Strikes . | . . . . Melee Attacks . | . . . . Impact . | . . . . Slashing . | . . . . Piercing . | . . . . Sneak Attacks . | . . . . Combat Hostiles . | . . . . Follow-up Attacks . | . . . . Damage Inflicted 649 | 46 548 36 19 Guns 534 | 46 441 35 12 Cannons . | . . . . Explosions 107 | . 107 . . Melee . | . . . . Ramming 8 | . . 1 7 Kinetic 534 | 46 441 35 12 Thermal 24 | . 24 . . Explosive . | . . . . Electromagnetic 83 | . 83 . . Impact . | . . . . Slashing . | . . . . Piercing . | . . . . Highest Corruption 8 | . 2 2 8 Average Corruption 2 | . 2 2 2 Corruption Purged . | . . . . Corruption Blocked . | . . . . Effects 20 | . 3 13 4 Message Errors 3 | . 1 1 1 Matter Fused 7 | . 1 4 2 Heat Flow Errors 3 | . . 3 . Energy Discharges 2 | . . 2 . Data Loss (major) 2 | . 1 1 . Misfires 2 | . . 1 1 Alerts 1 | . . 1 . Overload Shots . | . . . . Overflow Damage . | . . . . Projectiles . | . . . . Explosions . | . . . . Melee . | . . . . Knockbacks . | . . . . Impact . | . . . . Kinetic . | . . . . Secondary . | . . . . Self-Inflicted Damage 31 | . 31 . . Shots 3 | . 3 . . Rammed 5 | . . 1 4 Targets Rammed 5 | . . 1 4 Kicked . | . . . . Crushed . | . . . . Highest Temperature 241 | 12 . 241 . Average Temperature 105 | 9 . 115 . Received Heat Transfer 258 | 12 105 21 120 Siege Activations . | . . . . Robots Corrupted . | . . . . Combat Hostiles . | . . . . Parts Fried . | . . . . Impact Corruptions . | . . . . Robots Melted . | . . . . Combat Hostiles . | . . . . Parts Melted . | . . . . Heat Transferred 50 | . 50 . . Parts Sabotaged . | . . . . Parts Stolen . | . . . . Parts Stripped . | . . . . Power Chain Reactions 1 | . 1 . . Alert | -11 -10 -10 -10 ------- Run | Yrd Mat Min Exi Peak Influence 170 | 20 170 58 . Initial 39 | . 13 39 . Average 38 | 2 63 26 . Maximum Alert Level . | . . . . Low Security (%) 100 | 100 100 100 . Level 1 . | . . . . Level 2 . | . . . . Level 3 . | . . . . Level 4 . | . . . . Level 5 . | . . . . High Security . | . . . . Max Security . | . . . . Squads Dispatched . | . . . . Investigation . | . . . . Extermination . | . . . . Reinforcement . | . . . . Assault . | . . . . Garrison . | . . . . Intercept . | . . . . Searches Triggered . | . . . . Construction Impeded . | . . . . Haulers Reinforced . | . . . . Active Scanning Responses . | . . . . Cargo Convoy Interrupts . | . . . . Stealth | -11 -10 -10 -10 --------- Run | Yrd Mat Min Exi Distress Signals . | . . . . Communications Jammed . | . . . . Distress Signals . | . . . . Times Spotted 27 | 1 10 2 14 Peak Tracking Total 12 | 1 3 1 12 Tactical Retreats 2 | . 1 . 1 Traps | -11 -10 -10 -10 ------- Run | Yrd Mat Min Exi Traps Triggered 2 | . 2 . . Indirectly . | . . . . Trap Hack Attempts . | . . . . Triggered . | . . . . Disarmed . | . . . . Reprogrammed . | . . . . Reused . | . . . . Traps Extracted . | . . . . Installed . | . . . . Triggered . | . . . . Machines | -11 -10 -10 -10 ---------- Run | Yrd Mat Min Exi Machines Disabled 4 | . 2 . 2 Max in Single Turn 2 | . 2 . . Machines Repaired . | . . . . Machines Dismantled . | . . . . Machines Sabotaged . | . . . . Overloaded Fab Kills . | . . . . Hacking | -11 -10 -10 -10 --------- Run | Yrd Mat Min Exi Machines Accessed 5 | . 5 . . Terminals 5 | . 5 . . Fabricators . | . . . . Repair Stations . | . . . . Recycling Units . | . . . . Scanalyzers . | . . . . Garrison Access . | . . . . Total Hacks 15 | . 15 . . Successful 8 | . 8 . . Failed 7 | . 7 . . Catastrophic . | . . . . Database Lockouts . | . . . . Manual . | . . . . Terminals 15 | . 15 . . Fabricators . | . . . . Repair Stations . | . . . . Recycling Units . | . . . . Scanalyzers . | . . . . Garrison Access . | . . . . Terminal Hacks 8 | . 8 . . Robot Analysis 1 | . 1 . . Prototype ID Bank 1 | . 1 . . Emergency Access Points 1 | . 1 . . Locate Traps 2 | . 2 . . Hauler Manifests 2 | . 2 . . Zone Layout 1 | . 1 . . Fabricator Hacks . | . . . . Repair Station Hacks . | . . . . Recycling Unit Hacks . | . . . . Scanalyzer . | . . . . Garrison Access Hacks . | . . . . Unauthorized Hacks . | . . . . Terminals . | . . . . Fabricators . | . . . . Repair Stations . | . . . . Recycling Units . | . . . . Scanalyzers . | . . . . Garrison Access . | . . . . Data Cores Recovered . | . . . . Used . | . . . . Hacking Detections 5 | . 5 . . Full Trace Events . | . . . . Feedback Events . | . . . . Feedback Blocked . | . . . . Robot Schematics Acquired . | . . . . Robots Built . | . . . . Authchips . | . . . . Time . | . . . . Total Robot Build Rating . | . . . . Part Schematics Acquired . | . . . . Parts Built . | . . . . Authchips . | . . . . Time . | . . . . Total Part Build Rating . | . . . . Parts Repaired . | . . . . Time . | . . . . Parts Recycled . | . . . . Recycled Matter . | . . . . Retrieved Matter . | . . . . Retrieved Components . | . . . . Parts Scanalyzed . | . . . . Part Schematics Acquired . | . . . . Parts Damaged . | . . . . Bothacking | -11 -10 -10 -10 ------------ Run | Yrd Mat Min Exi Used RIF Installer . | . . . . Robots Hacked . | . . . . Non-combat . | . . . . Combat . | . . . . Robot Hacks Applied . | . . . . Relay Couplers Released . | . . . . Fabnet Peak Effective % . | . . . . Robots Rewired . | . . . . Allies Hacked . | . . . . Hacks Repelled . | . . . . Allies | -11 -10 -10 -10 -------- Run | Yrd Mat Min Exi Total Allies 3 | . . 3 . Largest Group 3 | . . 3 3 Highest-Rated Group 40 | . . 40 40 Highest-Rated Ally 16 | . . 16 16 Total Orders . | . . . . Ally Attacks 16 | . . 3 13 Total Damage 160 | . . 49 111 Kills 3 | . . 2 1 Allies Corrupted . | . . . . Allies Melted . | . . . . Intel | -11 -10 -10 -10 ------- Run | Yrd Mat Min Exi Robot Analysis Total 1 | . 1 . . Derelict Logs Recovered 1 | . . 1 . Drone Launches . | . . . . Drone Recoveries . | . . . . Exploration | -11 -10 -10 -10 ------------- Run | Yrd Mat Min Exi Turns Passed 1942 | 93 618 1019 212 Spaces Moved 1156 | 67 337 624 128 Core 21 | 16 3 . 2 Treads 929 | . 179 624 126 Legs 206 | 51 155 . . Wheels . | . . . . Hover . | . . . . Flight . | . . . . Fastest Speed 50 | 50 120 160 100 Average Speed 151 | 103 141 160 159 Slowest Speed 160 | 120 160 160 160 Overloaded Moves . | . . . . Propulsion Burnouts . | . . . . Robots Hopped . | . . . . Cave-ins Triggered . | . . . . Exploration Rate (%) 52 | 8 56 98 46 Regions Visited 3 Branch Regions 2 Pre-discovered Areas 1 | . . 1 . Known Exits Taken . | . . . . Unknown Exits Taken 3 | 1 1 1 . Scrap Searched 1 | . . 1 . Spaces Dug . | . . . . Terrain Destroyed 2 | . 2 . . Melee . | . . . . Projectile . | . . . . AOE 2 | . 2 . . Terrain Rammed . | . . . . Walls Destroyed . | . . . . Machines Disabled . | . . . . Actions | -11 -10 -10 -10 --------- Run | Yrd Mat Min Exi Total 1270 | 84 409 642 135 Wait 28 | . 17 8 3 Move 1153 | 66 336 623 128 Hop . | . . . . Pick Up 14 | 8 4 2 . Fast Attach 6 | . 6 . . Attach 6 | 6 . . . Detach 2 | . 2 . . Swap 4 | . 2 2 . Drop 8 | . 4 4 . Fire 44 | 4 38 2 . Melee . | . . . . Ram 2 | . . . 2 Kick . | . . . . Crush 3 | . . 1 2 Escape Stasis . | . . . . Rewire . | . . . . Trap . | . . . . Miscellaneous . | . . . . Route ------- -11/Scrapyard -10/Materials (discovered 3 exits: [*Mat x2] / [*Min]) -10/Mines (discovered 3 exits: [*Mat x2] / *Exi) -10/Exiles (discovered 1 exit: [*Min]) History --------- Turn | Location | Event 2 | -11/Scrapyard | Met Revision 17 67 | -11/Scrapyard | Discovered new exit (range 8) 94 | -11/Scrapyard | Entered Materials 188 | -10/Materials | Discovered new exit (range 17) 315 | -10/Materials | Build established: Mutant 356 | -10/Materials | Discovered new exit (range 15) 555 | -10/Materials | Discovered new exit (range 15) 712 | -10/Materials | Entered Mines 784 | -10/Mines | Assisted by bots powering up and referring to "LRC-V3" 800 | -10/Mines | Met a Derelict bent on vengeance 812 | -10/Mines | Learned location of Zion (-7) 1095 | -10/Mines | A weapon hastily lodged in a ceiling crevice suddenly fell to the ground 1128 | -10/Mines | Deemed a non-threat by the Exiles lab entrance 1130 | -10/Mines | Discovered new exit (range 5) 1194 | -10/Mines | Discovered new exit (range 6) 1496 | -10/Mines | Discovered new exit (range 7) 1731 | -10/Mines | Entered Exiles 1731 | -10/Exiles | Accompanied by 3 allies 1754 | -10/Exiles | Discovered new exit (range 15) 1799 | -10/Exiles | Met 8R-AWN 1829 | -10/Exiles | Met EX-HEX 1896 | -10/Exiles | Met EX-DEC 1902 | -10/Exiles | Attacked by the Exiles 1934 | -10/Exiles | Core integrity fell below 50% 1940 | -10/Exiles | Core integrity fell below 20% 1943 | -10/Exiles | Destroyed by as-75208 with Assembled Maul Last Messages --------------- 01916_ Machine disabled. 01918_ Trooper 1a destroyed. 01923_ Connecting with EX-Message Board... 01923_ Current location identified: Exiles 01924_ Imp. Treads destroyed. 01927_ Targeting Computer destroyed. 01933_ Slammed into as-75208. 01934_ Assault Rifle destroyed. 01935_ Slammed into as-75208. 01936_ Imp. Treads destroyed. 01936_ System corrupted by crushing effect (+5). 01936_ Slammed into as-75208. 01936_ Destabilizing: System interference. 01936_ Hvy. Battle Rifle temporarily disabled. 01936_ Imp. Heat Sink temporarily disabled. 01937_ Slammed into as-75208. 01937_ Destabilizing: System corrupted (+1). 01939_ Imp. Heat Sink destroyed. 01939_ Knocked back. 01942_ Hvy. Battle Rifle destroyed. Map ----- +----------------------------------------------------+ | ?????????????????????????????????????????????????? | | ?????????????????????????????????????????????????? | | ?????????????????????????????????????????????????? | | ?????????????????????????????????????????????????? | | ?????????????????????????????????????????????????? | | ?????????????????????????????????????????????????? | | ?????????????????????????????????????????????????? | | ?????????????????????????????????????????????????? | | ?????????????????????????????????????????????????? | | ?????????????????????????????????????????????????? | | ?????????????????????????????????????????????????? | | ?????????????????????????????????????????????????? | | ?????????????????????????????????????????????????? | | ????????????????????########????????? ??????? | | ????????????????????# """#????????? ?????? | | ????????????????????#"" """#????????? ????? | | ????????????????????#"" #????????? ????? | | ????????????????????#"" #?????????" ????? | | ????????????????????#"" "#????????#" ?????? | | ????????????????????# ""#????????#" ??????? | | ????????????????????#"" ""#???????##" #??????? | | ???????? ???????????###% ###??????##"" #??????? | | ??????? #####????###% ###?######"" #??????? | | ?????? """##### #a #"###""""""" ##?????? | | ?????? a"""""" " "" ##???## | | ??????# @"" """ " #####" | | ???????# " " " | | ???????### | | ?????????### a | | ???????????## | | ????????????## | | ?????????????##" a | | ??????????????#""" a """""" | | ?????????????##" =%= ######""" | | ?????????????#"" aca ""##????#####""" | | ?????????????#""" [ """##?????????##""" | | ?????????????""" ""##???????????#"""" | | ?????????????"" ""#????????????#"" | | ????????????#"" % ##???????????#"""" | | ????????????#""" #?????????"" | | ?????????????"" ??????" | | ?????????????#" ??? | | ?????????????#"" " ? | | ??????????????# | | ??????????????#" "?? "" | | ???????????????"""" ""?# ##""" " " | | ??????????????#"" ""#??# ??#####""" | | ????????????????? """"????#???????###"" | | ?????????????????" ?????????????????### | | ????????????????? ???????????????????? | +----------------------------------------------------+ Best States ------------- Heat Dissipation 39 Energy Generation 10 Energy Capacity 125 Matter Stores 300 Matter Capacity 300 Sight Range 16 Terrain Scan Density 10 Evasion (%) 55 Targeting Accuracy 5 Recoil Reduction 2 Item Schematics ----------------- None Robot Schematics ------------------ None Fabricated ------------ Nothing Alien Tech Used ----------------- None Achievements -------------- None Challenges ------------ None Game ------ Seed ImprinterOpticalSpoofer Manual? 0 Play Time 00:19:59 Cumulative 4.5 hours Start 2024.04.04 @ 05:20:57 End 2024.04.04 @ 05:41:52 Sessions 1 Manual Loads 0 Difficulty Rogue Special Mode None Game No. 3 Rogue 3 Adventurer 0 Explorer 0 Win Type - Total 0 Types 0/0/0/0/0/0/0/0/0 Lore% 2 Gallery% 8 Achievement% 8 Wizard Run 0 Options --------- Layout 1 ASCII 0 Keyboard 1 Movement Numpad Keybinds 0 Fullscreen 1 Font 48/Smallcaps Map View 50x35 Zoom Use 0% Tactical HUD 1 Map Filters NONE Filters NONE Steam 1 RUN: 0a59916e-2123-4eaf-97d3-a816acc71f89